fUST/lending_fUST_20240712
["ID","MTS","AMOUNT","RATE_DAILY","PERIOD"]
[331739088,1720729832659,-4817.25065954,0.00024462,2]
[331739090,1720729832669,-155.45465387,0.00024481,2]
[331739092,1720729832678,-166.666666,0.00024482,2]
[331739094,1720729832694,-151.0,0.000245,2]
[331739096,1720729832703,-359.76817974,0.00024634,2]
[331739098,1720729832711,-200.0,0.00024658,15]
[331739100,1720729832721,-380.0,0.00024658,2]
[331739102,1720729832730,-1563.49797101,0.000247,14]
[331739104,1720729832740,-1406.0,0.00024738,2]
[331739106,1720729832749,-150.0,0.00024738,2]
[331739108,1720729832758,-34017.77,0.0002475,3]
[331739110,1720729832767,-2000.0,0.0002476,2]
[331739112,1720729832776,-1125.47187314,0.0002477,2]
[331739114,1720729832785,-83689.36731215,0.0002484,3]
[331739117,1720729832798,-466.0,0.0002484,3]
[331739283,1720729838149,-162.57482,0.00019178,2]
[331739285,1720729838159,-503.0,0.00021738,2]
[331739287,1720729838169,-503.0,0.00024738,2]
[331739288,1720729838178,-510.94687324,0.0002484,3]
[331739290,1720729838191,-2683.55230984,0.0002484,3]
[331739738,1720729846332,-442.67873852,0.0002466,2]
[331739739,1720729846349,-20085.33423077,0.0002484,3]
[331739741,1720729846358,-3800.9567118,0.00024863,2]
[331739742,1720729846367,-151.0,0.0002487,2]
[331739744,1720729846378,-151.0,0.0002487,7]
[331739746,1720729846388,-366.541581,0.0002487,7]
[331739748,1720729846397,-366.541581,0.0002487,7]
[331739749,1720729846406,-27322.05000366,0.0002489,3]
[331739752,1720729846420,-11447.0,0.0002489,3]
[331740177,1720730619683,-166.5630506,0.00027397,120]
[331740178,1720730619727,-1833.4369494,0.00032,120]
[331740189,1720730640419,-184.17,0.00032,120]
[331740239,1720730743606,-887.8,0.000273,30]
[331740349,1720731032377,-293.58203646,0.0002,2]
[331740350,1720731032387,-154.68290005,0.0002,2]
[331740351,1720731032399,-165.492669,0.00020273,2]
[331740352,1720731032409,-161.618895,0.00020274,2]
[331740353,1720731032420,-250.0,0.00020425,2]
[331740354,1720731032432,-250.0,0.00020481,2]
[331740355,1720731032443,-250.0,0.00020537,2]
[331740356,1720731032453,-250.0,0.00020593,2]
[331740357,1720731032463,-250.0,0.00020649,2]
[331740358,1720731032472,-250.0,0.00020705,2]
[331740359,1720731032482,-250.0,0.00020761,2]
[331740360,1720731032491,-250.0,0.00020817,2]
[331740361,1720731032501,-250.0,0.00020873,2]
[331740362,1720731032510,-250.0,0.0002093,2]
[331740363,1720731032519,-250.0,0.00020986,2]
[331740364,1720731032530,-250.0,0.00021042,2]
[331740365,1720731032539,-1913.40843699,0.00021095,2]
[331740366,1720731032549,-750.0,0.00021096,2]
[331740367,1720731032558,-250.0,0.00021098,2]
[331740368,1720731032569,-250.0,0.00021154,2]
[331740369,1720731032579,-250.0,0.0002121,2]
[331740370,1720731032588,-621.20721565,0.0002121,2]
[331740371,1720731032600,-250.0,0.00021266,2]
[331740372,1720731032610,-250.0,0.00021322,2]
[331740373,1720731032620,-250.0,0.00021378,2]
[331740374,1720731032629,-300.0,0.00021403,2]
[331740375,1720731032639,-300.0,0.00021403,2]
[331740376,1720731032650,-24900.0,0.00021404,2]
[331740377,1720731032664,-1720.065056,0.00021431,2]
[331740378,1720731032675,-250.0,0.00021434,2]
[331740379,1720731032685,-250.0,0.0002149,2]
[331740380,1720731032696,-1065.99282123,0.00021917,2]
[331740381,1720731032706,-166.666666,0.00021918,2]
[331740382,1720731032717,-160.925234,0.00022095,2]
[331740383,1720731032727,-150.0,0.000221,2]
[331740384,1720731032739,-503.0,0.000221,2]
[331740385,1720731032750,-1406.0,0.000221,2]
[331740386,1720731032761,-248.851,0.000221,2]
[331740387,1720731032772,-620.06036078,0.00022271,2]
[331740388,1720731032782,-166.666666,0.00022434,2]
[331740389,1720731032793,-155.45465387,0.00022941,2]
[331740390,1720731032802,-3081.02605815,0.00022941,2]
[331740391,1720731032813,-166.666666,0.0002295,2]
[331740392,1720731032823,-300.0,0.00023273,2]
[331740393,1720731032832,-620.00301804,0.00023384,2]
[331740394,1720731032843,-166.666666,0.00023467,2]
[331740395,1720731032853,-215.0,0.00023544,2]
[331740396,1720731032866,-812.92138686,0.00023966,3]
[331740397,1720731032878,-166.666666,0.00023983,2]
[331740398,1720731032888,-153.0,0.00024164,2]
[331740399,1720731032898,-191.01997489,0.00024381,2]
[331740400,1720731032908,-166.666666,0.00024499,2]
[331740401,1720731032919,-153.0,0.00024548,2]
[331740402,1720731032928,-153.0,0.00024548,2]
[331740403,1720731032938,-153.0,0.00024548,2]
[331740404,1720731032948,-153.0,0.00024548,2]
[331740405,1720731032959,-153.0,0.00024548,2]
[331740406,1720731032969,-620.0001509,0.00024553,2]
[331740407,1720731032980,-366.61198732,0.00024565,2]
[331740408,1720731032991,-5292.21400908,0.00024651,2]
[331740409,1720731033003,-380.0,0.00024658,2]
[331740410,1720731033013,-153.7904281,0.00024685,2]
[331740411,1720731033023,-153.0,0.00024685,2]
[331740412,1720731033035,-153.0,0.00024685,2]
[331740413,1720731033045,-153.0,0.00024685,2]
[331740414,1720731033055,-153.0,0.00024685,2]
[331740415,1720731033065,-241.4842,0.00024776,2]
[331740416,1720731033075,-27739.8,0.0002488,3]
[331740417,1720731033085,-23116.5,0.0002488,3]
[331740418,1720731033095,-5572.90160036,0.0002489,2]
[331740419,1720731033105,-17456.17,0.0002489,3]
[331740420,1720731033116,-33287.75,0.0002489,3]
[331740421,1720731033126,-130.15104906,0.000249,2]
[331740422,1720731033136,-200.0,0.000249,2]
[331740423,1720731033146,-200.0,0.000249,2]
[331740424,1720731033156,-200.0,0.000249,2]
[331740425,1720731033165,-200.0,0.000249,2]
[331740426,1720731033175,-632.10211884,0.000249,2]
[331740427,1720731033184,-1044.04381011,0.000249,3]
[331740558,1720731043551,-439.50946012,0.00024892,3]
[331740647,1720731699722,268.92743618,0.00016255,2]
[331740653,1720731891728,2134.96934119,0.00016255,2]
[331740655,1720731923732,790.65319772,0.00016255,2]
[331740658,1720731954152,571.76487024,0.00016255,2]
[331740659,1720732019144,-197.37496918,0.00019069,2]
[331740660,1720732019165,-211.5186256,0.00019164,2]
[331740665,1720732104258,270.5778495,0.00016255,2]
[331740668,1720732154479,287.51223328,0.00016255,2]
[331740701,1720732232749,-276.69913264,0.00018899,2]
[331740702,1720732232760,-150.0,0.000189,2]
[331740703,1720732232771,-197.37496918,0.00019039,2]
[331740704,1720732232789,-176.749354,0.00019684,2]
[331740705,1720732232799,-1132.88546632,0.00019703,2]
[331740707,1720732232814,-250.0,0.00019831,2]
[331740710,1720732232825,-250.0,0.00019886,2]
[331740713,1720732232835,-250.0,0.0001994,2]
[331740715,1720732232846,-250.0,0.00019994,2]
[331740717,1720732232858,-250.0,0.00020049,2]
[331740719,1720732232867,-250.0,0.00020103,2]
[331740721,1720732232878,-250.0,0.00020157,2]
[331740723,1720732232889,-250.0,0.00020212,2]
[331740725,1720732232900,-594.7909786,0.00020215,2]
[331740727,1720732232911,-1205.36889,0.00020257,2]
[331740729,1720732232923,-250.0,0.00020266,2]
[331740731,1720732232934,-250.0,0.00020321,2]
[331740732,1720732232945,-162.57482,0.00020333,2]
[331740734,1720732232957,-250.0,0.00020375,2]
[331740736,1720732232968,-250.0,0.00020429,2]
[331740738,1720732232980,-250.0,0.00020484,2]
[331740740,1720732232992,-250.0,0.00020538,2]
[331740742,1720732233005,-250.0,0.00020593,2]
[331740744,1720732233016,-250.0,0.00020647,2]
[331740746,1720732233028,-250.0,0.00020701,2]
[331740748,1720732233044,-250.0,0.00020756,2]
[331740750,1720732233054,-250.0,0.0002081,2]
[331740752,1720732233066,-250.0,0.00020864,2]
[331740754,1720732233077,-518.94296441,0.00021095,2]
[331740756,1720732233088,-750.0,0.00021096,2]
[331740758,1720732233099,-2954.19341553,0.00021799,2]
[331740760,1720732233111,-300.0,0.00021838,2]
[331740762,1720732233123,-300.0,0.00021838,2]
[331740764,1720732233134,-24900.0,0.00021871,2]
[331740766,1720732233145,-1406.0,0.0002191,2]
[331740768,1720732233157,-1065.99282123,0.00021917,2]
[331740770,1720732233168,-166.666666,0.00021918,2]
[331740772,1720732233180,-215.09979109,0.00022,2]
[331740774,1720732233191,-150.0,0.00022103,2]
[331740776,1720732233202,-503.0,0.00022103,2]
[331740777,1720732233212,-162.3162109,0.00022229,2]
[331740779,1720732233223,-880.43468387,0.00022262,2]
[331740781,1720732233251,-166.666666,0.00022431,2]
[331740783,1720732233263,-166.666666,0.00022944,2]
[331740785,1720732233275,-166.666666,0.00023456,2]
[331740787,1720732233288,-153.0,0.00023589,2]
[331740789,1720732233299,-153.0,0.00023641,2]
[331740791,1720732233311,-153.0,0.00023641,2]
[331740793,1720732233323,-153.0,0.00023863,2]
[331740795,1720732233337,-153.0,0.00023863,2]
[331740797,1720732233348,-153.0,0.00023863,2]
[331740799,1720732233358,-153.0,0.00023863,2]
[331740801,1720732233368,-153.0,0.00023941,2]
[331740803,1720732233378,-153.0,0.00023941,2]
[331740805,1720732233389,-1229.95449669,0.00023966,2]
[331740807,1720732233399,-1055.17043804,0.00023966,2]
[331740809,1720732233410,-166.666666,0.00023969,2]
[331740811,1720732233421,-153.0,0.00024041,2]
[331740813,1720732233431,-153.0,0.00024078,2]
[331740815,1720732233442,-5292.21400908,0.00024405,2]
[331740817,1720732233453,-166.666666,0.00024482,2]
[331740819,1720732233465,-366.61198732,0.00024525,2]
[331740821,1720732233475,-153.0,0.00024548,2]
[331740823,1720732233486,-153.0,0.00024548,2]
[331740825,1720732233496,-153.0,0.00024548,2]
[331740827,1720732233508,-153.0,0.00024548,2]
[331740829,1720732233518,-153.0,0.00024548,2]
[331740830,1720732233528,-153.0,0.00024548,2]
[331740832,1720732233541,-153.0,0.00024548,2]
[331740834,1720732233551,-153.0,0.00024548,2]
[331740836,1720732233563,-153.0,0.00024548,2]
[331740838,1720732233574,-153.0,0.00024548,2]
[331740840,1720732233585,-153.0,0.00024548,2]
[331740842,1720732233595,-153.0,0.00024548,2]
[331740844,1720732233605,-153.0,0.00024548,2]
[331740846,1720732233615,-153.0,0.00024548,2]
[331740848,1720732233626,-153.0,0.00024548,2]
[331740850,1720732233640,-153.0,0.00024548,2]
[331740852,1720732233650,-153.0,0.00024548,2]
[331740854,1720732233660,-278.2097649,0.00024548,2]
[331740856,1720732233670,-153.0,0.00024548,2]
[331740858,1720732233681,-153.0,0.00024548,2]
[331740860,1720732233692,-153.0,0.00024548,2]
[331740862,1720732233702,-153.0,0.000246,2]
[331740864,1720732233712,-153.0,0.00024685,2]
[331740866,1720732233723,-153.0,0.00024685,2]
[331740869,1720732233737,-153.0,0.00024685,2]
[331740871,1720732233753,-764.10919398,0.00024892,2]
[331740873,1720732233768,-225.81003448,0.00024892,2]
[331740875,1720732233797,-1000.0,0.00024892,2]
[331740878,1720732233811,-302.39527296,0.000249,2]
[331740880,1720732233825,-1406.0,0.0002491,2]
[331740882,1720732233838,-15559.40894823,0.0002497,3]
[331741006,1720732879045,491.45116219,0.00016255,2]
[331741008,1720732950117,154.8373837,0.00016255,2]
[331741021,1720733355729,-154.77557542,0.00018798,2]
[331741022,1720733383042,174.64145019,0.00016255,2]
[331741034,1720733432699,-182.377696,0.00019077,2]
[331741035,1720733432708,-250.0,0.00019245,2]
[331741036,1720733432719,-250.0,0.00019298,2]
[331741037,1720733432730,-250.0,0.00019351,2]
[331741038,1720733432740,-250.0,0.00019404,2]
[331741039,1720733432751,-250.0,0.00019456,2]
[331741040,1720733432761,-250.0,0.00019509,2]
[331741041,1720733432771,-250.0,0.00019562,2]
[331741042,1720733432782,-250.0,0.00019615,2]
[331741043,1720733432793,-250.0,0.00019668,2]
[331741044,1720733432803,-250.0,0.0001972,2]
[331741045,1720733432814,-250.0,0.00019773,2]
[331741046,1720733432825,-250.0,0.00019826,2]
[331741047,1720733432836,-250.0,0.00019879,2]
[331741048,1720733432846,-2631.93856121,0.000199,2]
[331741049,1720733432857,-250.0,0.00019932,2]
[331741050,1720733432866,-250.0,0.00019984,2]
[331741051,1720733432876,-300.0,0.00019999,2]
[331741052,1720733432887,-3644.96462888,0.0002,5]
[331741053,1720733432896,-281.33195977,0.0002,2]
[331741066,1720733437778,-12.25007669,0.0002,2]
[331741067,1720733437788,-154.82195475,0.0002,2]
[331741068,1720733437797,-190.7238018,0.0002,2]
[331741070,1720733437807,-154.68290005,0.0002,2]
[331741072,1720733437816,-34236.54363721,0.0002,2]
[331741074,1720733437825,-4855.00134939,0.0002,2]
[331741076,1720733437834,-4274.06503652,0.0002,2]
[331741077,1720733437844,-17330.63977349,0.0002,2]
[331741103,1720733440106,-31787.15634351,0.0002,2]
[331741104,1720733440116,-575.15278975,0.0002,2]
[331741105,1720733440127,-250.0,0.00020037,2]
[331741106,1720733440139,-250.0,0.0002009,2]
[331741107,1720733440149,-250.0,0.00020143,2]
[331741108,1720733440159,-250.0,0.00020196,2]
[331741109,1720733440168,-250.0,0.00020248,2]
[331741110,1720733440178,-161.618895,0.00020409,2]
[331741112,1720733440188,-4233.61132549,0.0002066,7]
[331741113,1720733440198,-4991.83159611,0.000207,2]
[331741114,1720733440208,-750.0,0.00021096,2]
[331741115,1720733440219,-1102.79338913,0.0002121,2]
[331741116,1720733440230,-24900.0,0.00021403,2]
[331741117,1720733440240,-620.00000755,0.00021475,2]
[331741118,1720733440251,-1065.99282123,0.00021917,2]
[331741119,1720733440261,-166.666666,0.00021918,2]
[331741120,1720733440270,-287.0,0.00021999,2]
[331741121,1720733440279,-245.83084824,0.00022,2]
[331741122,1720733440290,-161.021783,0.00022219,2]
[331741123,1720733440300,-644.13966946,0.00022271,2]
[331741124,1720733440309,-248.74539897,0.00022278,2]
[331741125,1720733440320,-166.666666,0.00022431,2]
[331741126,1720733440329,-1406.0,0.00022484,2]
[331741127,1720733440340,-150.0,0.00022484,2]
[331741128,1720733440351,-503.0,0.00022484,2]
[331741129,1720733440361,-620.00000038,0.00022549,2]
[331741130,1720733440372,-166.666666,0.00022944,2]
[331741131,1720733440382,-301.94773379,0.00023,2]
[331741132,1720733440396,-621.20698347,0.00023384,2]
[331741133,1720733440405,-166.666666,0.00023456,2]
[331741134,1720733440414,-2631.93856118,0.00023471,2]
[331741135,1720733440424,-620.00000002,0.00023676,2]
[331741136,1720733440435,-166.666666,0.00023969,2]
[331741137,1720733440445,-880.43468387,0.00024481,2]
[331741138,1720733440455,-166.666666,0.00024482,2]
[331741139,1720733440465,-620.06034917,0.00024553,2]
[331741140,1720733440474,-302.39527296,0.000249,2]
[331741141,1720733440484,-225.81003448,0.0002497,2]
[331741142,1720733440493,-764.10919398,0.0002497,2]
[331741143,1720733440502,-1000.0,0.0002497,2]
[331741144,1720733440511,-619.893609,0.0002497,7]
[331741145,1720733440520,-619.893609,0.0002497,7]
[331741146,1720733440530,-619.893609,0.0002498,7]
[331741147,1720733440539,-619.893609,0.0002498,7]
[331741148,1720733440549,-39851.31495046,0.0002498,3]
[331741317,1720734632669,-197.37496918,0.00019039,2]
[331741318,1720734632679,-312.92826233,0.0002,2]
[331741319,1720734632691,-586.23740997,0.0002,2]
[331741370,1720734640047,-166.82714893,0.0002,2]
[331741372,1720734640057,-154.68290005,0.0002,2]
[331741374,1720734640066,-293.58203646,0.0002,2]
[331741376,1720734640076,-250.0,0.00020758,2]
[331741378,1720734640086,-250.0,0.00020815,2]
[331741380,1720734640095,-250.0,0.00020872,2]
[331741382,1720734640104,-187.66006725,0.000209,2]
[331741384,1720734640114,-250.0,0.00020929,2]
[331741386,1720734640124,-394.397187,0.00020956,2]
[331741388,1720734640133,-250.0,0.00020986,2]
[331741390,1720734640143,-250.0,0.00021043,2]
[331741392,1720734640152,-280.937599,0.00021096,2]
[331741394,1720734640162,-712.5,0.00021096,2]
[331741396,1720734640172,-250.0,0.000211,2]
[331741398,1720734640181,-250.0,0.00021157,2]
[331741400,1720734640190,-287.0,0.00021209,2]
[331741402,1720734640201,-644.13967701,0.0002121,2]
[331741404,1720734640210,-250.0,0.00021213,2]
[331741406,1720734640219,-250.0,0.0002127,2]
[331741408,1720734640229,-250.0,0.00021327,2]
[331741410,1720734640238,-250.0,0.00021384,2]
[331741412,1720734640247,-250.0,0.00021441,2]
[331741414,1720734640257,-250.0,0.00021498,2]
[331741416,1720734640267,-161.021794,0.00021506,2]
[331741418,1720734640276,-250.0,0.00021555,2]
[331741420,1720734640285,-24900.0,0.00021579,2]
[331741422,1720734640295,-250.0,0.00021612,2]
[331741424,1720734640304,-182.3776963,0.00021659,2]
[331741426,1720734640313,-250.0,0.00021669,2]
[331741428,1720734640322,-250.0,0.00021726,2]
[331741430,1720734640331,-250.0,0.00021783,2]
[331741432,1720734640341,-250.0,0.0002184,2]
[331741434,1720734640351,-166.666666,0.00021918,2]
[331741436,1720734640360,-880.43468387,0.00022236,2]
[331741438,1720734640369,-621.20698385,0.00022271,2]
[331741440,1720734640379,-262.42301402,0.0002243,2]
[331741442,1720734640389,-166.666666,0.00022431,2]
[331741444,1720734640398,-150.0,0.00022882,2]
[331741446,1720734640407,-503.0,0.00022882,2]
[331741448,1720734640416,-1406.0,0.00022882,2]
[331741450,1720734640425,-150.0,0.00022882,2]
[331741452,1720734640435,-155.45465387,0.00022941,2]
[331741454,1720734640444,-166.666666,0.00022944,2]
[331741456,1720734640453,-301.94773379,0.00023,2]
[331741458,1720734640462,-620.06034919,0.00023384,2]
[331741460,1720734640471,-166.666666,0.00023456,2]
[331741462,1720734640480,-1042.97057686,0.00023966,2]
[331741464,1720734640490,-166.666666,0.00023969,2]
[331741466,1720734640499,-822.37122239,0.00024481,5]
[331741469,1720734640520,-166.666666,0.00024482,2]
[331741470,1720734640532,-620.00301746,0.00024553,2]
[331741471,1720734640542,-153.0,0.0002463,2]
[331741472,1720734640552,-2000.0,0.0002482,2]
[331741473,1720734640562,-6408.86026187,0.0002489,2]
[331741474,1720734640573,-302.39527296,0.000249,2]
[331741475,1720734640583,-190.419886,0.0002492,7]
[331741476,1720734640593,-190.419886,0.0002492,7]
[331741477,1720734640603,-190.419886,0.0002492,7]
[331741478,1720734640612,-190.419886,0.0002492,7]
[331741479,1720734640622,-151.0,0.0002492,7]
[331741480,1720734640631,-151.0,0.0002492,7]
[331741481,1720734640640,-151.0,0.0002492,7]
[331741482,1720734640650,-151.0,0.0002492,7]
[331741483,1720734640660,-151.0,0.0002492,7]
[331741484,1720734640670,-225.81003448,0.0002498,2]
[331741485,1720734640679,-764.10919398,0.0002498,2]
[331741486,1720734640689,-1000.0,0.0002498,2]
[331741487,1720734640699,-190.419886,0.0002498,7]
[331741488,1720734640708,-190.419886,0.0002498,7]
[331741489,1720734640718,-151.0,0.0002498,7]
[331741490,1720734640727,-151.0,0.0002498,7]
[331741491,1720734640737,-619.893609,0.0002498,7]
[331741492,1720734640746,-619.893609,0.0002498,7]
[331741493,1720734640757,-151.0,0.0002498,2]
[331741494,1720734640768,-246.01,0.0002498,3]
[331741495,1720734640778,-659.03308962,0.0002498,3]
[331741625,1720734643010,-64.99960884,0.0002498,3]
[331741647,1720734645998,-13.99730154,0.0002498,3]
[331741649,1720734646009,-512.08342721,0.0002498,3]
[331741651,1720734646083,-8100.89657279,0.0002498,3]
[331741652,1720734646092,-16424.38,0.0002498,3]
[331741653,1720734646101,-500.0,0.00024989,2]
[331741654,1720734646112,-500.0,0.00024989,2]
[331741655,1720734646122,-500.0,0.00024989,2]
[331741656,1720734646132,-500.0,0.00024989,2]
[331741657,1720734646141,-500.0,0.00024989,2]
[331741658,1720734646150,-565.02347996,0.00024989,2]
[331741659,1720734646159,-597.82674173,0.00024989,2]
[331741660,1720734646169,-500.0,0.00024989,2]
[331741661,1720734646178,-500.0,0.00024989,2]
[331741662,1720734646187,-500.0,0.00024989,2]
[331741663,1720734646197,-500.0,0.00024989,2]
[331741664,1720734646207,-164.94770782,0.00024989,2]
[331741665,1720734646216,-151.0,0.0002499,7]
[331741666,1720734646226,-190.419886,0.0002499,7]
[331741667,1720734646235,-190.419886,0.0002499,7]
[331741668,1720734646244,-16843.20547902,0.0002499,3]
[331741669,1720734646255,-7761.42363677,0.0002499,3]
[331741670,1720734646267,-572.27563167,0.0002499,3]
[331741696,1720735089842,-833.0400645,0.00018899,2]
[331741711,1720735700856,-308.33664647,0.00020996,2]
[331741712,1720735700890,-131.17281365,0.00021096,2]
[331741972,1720735838260,-135.71790535,0.00021096,2]
[331741973,1720735838270,-676.875,0.00021096,2]
[331741974,1720735838279,-225.81003448,0.00021096,2]
[331741975,1720735838288,-764.10919398,0.00021096,2]
[331741976,1720735838298,-1000.0,0.00021096,2]
[331741977,1720735838306,-182.3776963,0.00021172,2]
[331741978,1720735838315,-176.222299,0.00021317,2]
[331741979,1720735838325,-176.222299,0.00021375,2]
[331741980,1720735838335,-176.222299,0.00021434,2]
[331741981,1720735838344,-621.20683336,0.00021471,2]
[331741983,1720735838353,-176.222299,0.00021492,2]
[331741985,1720735838362,-176.222299,0.00021551,2]
[331741987,1720735838371,-176.222299,0.00021609,2]
[331741988,1720735838380,-161.618895,0.00021662,2]
[331741989,1720735838389,-176.222299,0.00021668,2]
[331741990,1720735838398,-176.222299,0.00021726,2]
[331741991,1720735838407,-236.0,0.00021736,2]
[331741992,1720735838416,-20284.87741535,0.00021737,2]
[331741993,1720735838428,-4615.12258465,0.00021737,2]
[331741994,1720735838439,-176.222299,0.00021784,2]
[331741995,1720735838449,-176.222299,0.00021843,2]
[331741996,1720735838458,-176.222299,0.00021901,2]
[331741997,1720735838467,-166.666666,0.00021918,2]
[331741998,1720735838477,-176.222299,0.0002196,2]
[331741999,1720735838487,-176.222299,0.00022018,2]
[331742000,1720735838496,-176.222299,0.00022077,2]
[331742001,1720735838506,-176.222299,0.00022135,2]
[331742002,1720735838516,-176.222299,0.00022194,2]
[331742003,1720735838526,-176.222299,0.00022252,2]
[331742004,1720735838535,-880.43468387,0.00022262,2]
[331742005,1720735838545,-176.222299,0.00022311,2]
[331742006,1720735838555,-176.222299,0.00022369,2]
[331742007,1720735838565,-245.83084824,0.00022377,2]
[331742008,1720735838574,-176.222299,0.00022428,2]
[331742009,1720735838583,-166.666666,0.00022435,2]
[331742010,1720735838593,-620.06034167,0.00022544,2]
[331742011,1720735838602,-150.0,0.00022884,2]
[331742012,1720735838615,-503.0,0.00022884,2]
[331742013,1720735838628,-1406.0,0.00022905,2]
[331742014,1720735838642,-166.666666,0.00022952,2]
[331742015,1720735838655,-301.94773379,0.00023,2]
[331742016,1720735838670,-166.666666,0.00023469,2]
[331742017,1720735838682,-161.083843,0.00023578,2]
[331742018,1720735838697,-620.00301708,0.00023672,2]
[331742019,1720735838712,-1065.99282123,0.00023966,2]
[331742020,1720735838725,-1042.97057686,0.00023966,2]
[331742021,1720735838738,-166.666666,0.00023986,2]
[331742022,1720735838751,-320.24227683,0.00024,2]
[331742023,1720735838765,-153.0,0.00024055,2]
[331742024,1720735838779,-153.0,0.00024055,2]
[331742025,1720735838791,-166.666666,0.00024504,2]
[331742026,1720735838802,-2000.0,0.0002475,2]
[331742027,1720735838814,-7433.07,0.00024829,3]
[331742028,1720735838826,-500.0,0.00024839,2]
[331742029,1720735838839,-164.31166471,0.00024839,2]
[331742030,1720735838851,-500.0,0.00024839,2]
[331742031,1720735838863,-312.76721899,0.00024839,2]
[331742032,1720735838875,-500.0,0.00024839,2]
[331742033,1720735838886,-500.0,0.00024839,2]
[331742034,1720735838897,-500.0,0.00024839,2]
[331742035,1720735838908,-500.0,0.00024839,2]
[331742036,1720735838920,-500.0,0.00024839,2]
[331742037,1720735838932,-353.96967899,0.00024839,2]
[331742038,1720735838944,-500.0,0.00024839,2]
[331742039,1720735838956,-173.55914257,0.00024839,2]
[331742040,1720735838967,-500.0,0.00024839,2]
[331742041,1720735838978,-500.0,0.00024839,2]
[331742042,1720735838988,-500.0,0.00024839,2]
[331742043,1720735839000,-500.0,0.00024839,2]
[331742044,1720735839011,-16689.46963028,0.00024839,5]
[331742045,1720735839023,-2649.53277178,0.00024839,5]
[331742062,1720735840381,-248.74539897,0.00022344,2]
[331742063,1720735840394,-5652.88666067,0.00024839,5]
[331742064,1720735840406,-19416.14225487,0.0002484,3]
[331742095,1720735846387,-253.546183,0.00021096,2]
[331742096,1720735846398,-2902.34930834,0.00024829,3]
[331742097,1720735846413,-721.219865,0.00024829,3]
[331742102,1720735907883,-0.00378938,0.000273,30]
[331742103,1720735907942,-349.99621062,0.0003,30]
[331742109,1720736170131,627.0384825,0.00019164,2]
[331742114,1720736326075,822.37122239,0.00019164,3]
[331742116,1720736463280,297.92341855,0.00019165,2]
[331742117,1720736476051,1042.97057686,0.00019165,2]
[331742119,1720736616278,360.16423676,0.00019165,2]
[331742122,1720736846928,262.42301402,0.00019165,2]
[331742124,1720736900801,434.05884628,0.00019165,2]
[331742208,1720737038380,-161.078672,0.00019906,2]
[331742210,1720737038390,-293.58203646,0.0002,2]
[331742212,1720737038400,-155.34500633,0.0002,2]
[331742213,1720737038410,-155.34500633,0.0002,2]
[331742215,1720737038420,-378.3419311,0.0002018,2]
[331742217,1720737038430,-3000.0,0.00020908,2]
[331742219,1720737038440,-3188.76841849,0.00021,7]
[331742221,1720737038449,-643.03125,0.00021096,2]
[331742223,1720737038459,-240.868873,0.00021096,2]
[331742225,1720737038468,-187.500003,0.00021336,2]
[331742227,1720737038478,-24900.0,0.00021561,2]
[331742229,1720737038487,-187.500003,0.00021706,2]
[331742231,1720737038496,-2302.94624105,0.00021818,2]
[331742232,1720737038508,-1065.99282123,0.00021917,2]
[331742234,1720737038518,-166.666666,0.00021918,2]
[331742236,1720737038527,-187.500003,0.00022077,2]
[331742237,1720737038540,-880.43468387,0.00022289,2]
[331742238,1720737038551,-166.666666,0.00022431,2]